fUSD/lending_fUSD_20240409
["ID","MTS","AMOUNT","RATE_DAILY","PERIOD"]
[321947821,1712647841672,-500.0,0.00020821,2]
[321947822,1712647841684,-500.0,0.00020821,2]
[321947823,1712647841693,-500.0,0.00020821,2]
[321947824,1712647841702,-2859.37,0.00020821,2]
[321947825,1712647841712,-762.78,0.00020821,2]
[321947826,1712647841721,-500.0,0.00020821,2]
[321947827,1712647841730,-500.0,0.00020821,2]
[321947828,1712647841741,-1246.54,0.00020821,2]
[321947829,1712647841751,-500.0,0.00020821,2]
[321947830,1712647841761,-305.03830791,0.00020821,2]
[321948097,1712647844342,-194.96169209,0.00020821,2]
[321948099,1712647844352,-582.2,0.00020821,2]
[321948101,1712647844362,-500.0,0.00020821,2]
[321948103,1712647844371,-500.0,0.00020821,2]
[321948105,1712647844381,-500.0,0.00020821,2]
[321948107,1712647844390,-500.0,0.00020821,2]
[321948109,1712647844399,-500.0,0.00020821,2]
[321948121,1712647844491,-500.0,0.00020821,2]
[321948125,1712647844535,-500.0,0.00020821,2]
[321948127,1712647844544,-500.0,0.00020821,2]
[321948129,1712647844554,-500.0,0.00020821,2]
[321948131,1712647844563,-2349.3,0.00020821,2]
[321948134,1712647844572,-500.0,0.00020821,2]
[321948136,1712647844582,-500.0,0.00020821,2]
[321948137,1712647844591,-519.81776586,0.00020821,2]
[321948139,1712647844600,-500.0,0.00020821,2]
[321948141,1712647844610,-500.0,0.00020821,2]
[321948143,1712647844619,-1906.17,0.00020821,2]
[321948145,1712647844628,-500.0,0.00020821,2]
[321948147,1712647844637,-500.0,0.00020821,2]
[321948150,1712647844646,-608.1,0.00020821,2]
[321948152,1712647844655,-500.0,0.00020821,2]
[321948153,1712647844664,-528.36814489,0.00020821,2]
[321948156,1712647844674,-500.0,0.00020821,2]
[321948158,1712647844684,-500.0,0.00020821,2]
[321948159,1712647844693,-500.0,0.00020821,2]
[321948162,1712647844702,-500.0,0.00020821,2]
[321948164,1712647844712,-500.0,0.00020821,2]
[321948165,1712647844721,-500.0,0.00020821,2]
[321948167,1712647844730,-502.55350873,0.00020821,2]
[321948169,1712647844739,-1036.14,0.00020821,2]
[321948171,1712647844748,-500.0,0.00020821,2]
[321948173,1712647844757,-500.0,0.00020821,2]
[321948175,1712647844767,-747.23,0.00020821,2]
[321948177,1712647844776,-500.0,0.00020821,2]
[321948180,1712647844786,-530.30249857,0.00020821,2]
[321948181,1712647844794,-500.0,0.00020821,2]
[321948183,1712647844804,-500.0,0.00020821,2]
[321948185,1712647844813,-500.0,0.00020821,2]
[321948187,1712647844822,-500.0,0.00020821,2]
[321948189,1712647844832,-1431.08,0.00020821,2]
[321948191,1712647844840,-500.0,0.00020821,2]
[321948193,1712647844849,-535.97,0.00020821,2]
[321948195,1712647844859,-500.0,0.00020821,2]
[321948197,1712647844868,-500.0,0.00020821,2]
[321948199,1712647844878,-500.0,0.00020821,2]
[321948201,1712647844887,-500.0,0.00020821,2]
[321948203,1712647844896,-757.87,0.00020821,2]
[321948205,1712647844905,-500.0,0.00020821,2]
[321948207,1712647844915,-500.0,0.00020821,2]
[321948209,1712647844924,-500.0,0.00020821,2]
[321948211,1712647844934,-500.0,0.00020821,2]
[321948213,1712647844944,-679.81,0.00020821,2]
[321948215,1712647844953,-500.0,0.00020821,2]
[321948217,1712647844962,-500.0,0.00020821,2]
[321948219,1712647844971,-500.0,0.00020821,2]
[321948221,1712647844980,-500.0,0.00020821,2]
[321948223,1712647844989,-527.86923675,0.00020821,2]
[321948225,1712647844998,-500.0,0.00020821,2]
[321948227,1712647845007,-2493.29,0.00020821,2]
[321948229,1712647845017,-500.0,0.00020821,2]
[321948231,1712647845026,-608.78,0.00020821,2]
[321948233,1712647845035,-500.0,0.00020821,2]
[321948235,1712647845046,-500.0,0.00020821,2]
[321948238,1712647845055,-619.50972276,0.00020821,2]
[321948241,1712647845064,-500.0,0.00020821,2]
[321948244,1712647845073,-1341.03,0.00020821,2]
[321948246,1712647845082,-500.0,0.00020821,2]
[321948250,1712647845092,-265.24580433,0.00020821,2]
[321948252,1712647845102,-500.0,0.00020821,2]
[321948255,1712647845113,-500.0,0.00020821,2]
[321948258,1712647845123,-500.0,0.00020821,2]
[321948261,1712647845136,-500.0,0.00020821,2]
[321948264,1712647845146,-500.0,0.00020821,2]
[321948267,1712647845157,-9.43712415,0.00020821,2]
[321948271,1712647845174,-908.45287585,0.00020821,2]
[321948273,1712647845186,-500.0,0.00020821,2]
[321948276,1712647845197,-500.0,0.00020821,2]
[321948279,1712647845206,-500.0,0.00020821,2]
[321948282,1712647845215,-369.6392428,0.00020821,2]
[321948299,1712647845291,-130.3607572,0.00020821,2]
[321948302,1712647845301,-1379.3,0.00020821,2]
[321948304,1712647845310,-511.02,0.00020821,2]
[321948307,1712647845319,-687.05,0.00020821,2]
[321948310,1712647845329,-633.4490862,0.00020821,2]
[321948313,1712647845338,-2025.6,0.00020821,2]
[321948316,1712647845347,-541.49,0.00020821,2]
[321948319,1712647845356,-500.0,0.00020821,2]
[321948323,1712647845365,-500.0,0.00020821,2]
[321948327,1712647845374,-149.6719966,0.00020821,2]
[321948331,1712647845386,-948.2280034,0.00020821,2]
[321948334,1712647845395,-500.0,0.00020821,2]
[321948338,1712647845405,-500.0,0.00020821,2]
[321948340,1712647845415,-500.0,0.00020821,2]
[321948344,1712647845424,-500.0,0.00020821,2]
[321948348,1712647845437,-516.35990843,0.00020821,2]
[321948352,1712647845446,-500.0,0.00020821,2]
[321948356,1712647845455,-500.0,0.00020821,2]
[321948359,1712647845464,-513.66209146,0.00020821,2]
[321948362,1712647845472,-500.0,0.00020821,2]
[321948366,1712647845482,-500.0,0.00020821,2]
[321948368,1712647845491,-500.0,0.00020821,2]
[321948371,1712647845501,-500.0,0.00020821,2]
[321948373,1712647845510,-500.0,0.00020821,2]
[321948375,1712647845519,-1370.04,0.00020821,2]
[321948377,1712647845529,-500.0,0.00020821,2]
[321948379,1712647845538,-972.41,0.00020821,2]
[321948381,1712647845550,-1498.43338012,0.00020821,2]
[321948409,1712647845757,-335.05988258,0.00020821,2]
[321948411,1712647845767,-212.77661988,0.00020821,2]
[321948413,1712647845776,-500.0,0.00020821,2]
[321948415,1712647845785,-593.18889648,0.00020821,2]
[321948454,1712647846228,-262.08803518,0.0002054,2]
[321948457,1712647846240,-2237.91196482,0.0002054,2]
[321948459,1712647846250,-0.50110352,0.00020821,2]
[321948461,1712647846259,-192.16185736,0.00020821,2]
[321948463,1712647846270,-2704.81,0.00020821,2]
[321948466,1712647846281,-1671.34,0.00020821,2]
[321948467,1712647846291,-500.0,0.00020821,2]
[321948469,1712647846300,-500.0,0.00020821,2]
[321948472,1712647846315,-1044.64,0.00020821,2]
[321948474,1712647846326,-500.0,0.00020821,2]
[321948476,1712647846337,-500.0,0.00020821,2]
[321948478,1712647846347,-500.0,0.00020821,2]
[321948480,1712647846357,-500.0,0.00020821,2]
[321948482,1712647846367,-500.0,0.00020821,2]
[321948484,1712647846377,-500.0,0.00020821,2]
[321948486,1712647846387,-586.04,0.00020821,2]
[321948488,1712647846398,-647.34,0.00020821,2]
[321948491,1712647846408,-500.0,0.00020821,2]
[321948493,1712647846418,-500.0,0.00020821,2]
[321948495,1712647846428,-2122.67,0.00020821,2]
[321948497,1712647846441,-500.0,0.00020821,2]
[321948499,1712647846451,-640.43,0.00020821,2]
[321948501,1712647846461,-521.44,0.00020821,2]
[321948503,1712647846470,-540.41,0.00020821,2]
[321948505,1712647846480,-500.0,0.00020821,2]
[321948507,1712647846490,-500.0,0.00020821,2]
[321948509,1712647846500,-500.0,0.00020821,2]
[321948511,1712647846509,-500.0,0.00020821,2]
[321948513,1712647846519,-500.0,0.00020821,2]
[321948515,1712647846529,-500.0,0.00020821,2]
[321948517,1712647846539,-529.54966152,0.00020821,2]
[321948519,1712647846549,-500.0,0.00020821,2]
[321948521,1712647846559,-500.0,0.00020821,2]
[321948523,1712647846569,-500.0,0.00020821,2]
[321948525,1712647846580,-852.4,0.00020821,2]
[321948527,1712647846590,-500.0,0.00020821,2]
[321948529,1712647846600,-596.38,0.00020821,2]
[321948531,1712647846611,-775.98,0.00020821,2]
[321948533,1712647846621,-1373.87,0.00020821,2]
[321948535,1712647846632,-500.0,0.00020821,2]
[321948537,1712647846641,-1830.92,0.00020821,2]
[321948540,1712647846652,-989.62,0.00020821,2]
[321948542,1712647846661,-500.0,0.00020821,2]
[321948544,1712647846671,-500.0,0.00020821,2]
[321948546,1712647846685,-1129.9,0.00020821,2]
[321948548,1712647846695,-500.0,0.00020821,2]
[321948550,1712647846706,-661.98,0.00020821,2]
[321948552,1712647846717,-500.79309117,0.00020821,2]
[321948554,1712647846728,-500.0,0.00020821,2]
[321948556,1712647846739,-516.15423723,0.00020821,2]
[321948558,1712647846749,-715.89,0.00020821,2]
[321948560,1712647846759,-500.0,0.00020821,2]
[321948562,1712647846769,-533.3,0.00020821,2]
[321948564,1712647846780,-500.0,0.00020821,2]
[321948566,1712647846791,-500.0,0.00020821,2]
[321948568,1712647846802,-500.0,0.00020821,2]
[321948570,1712647846811,-500.0,0.00020821,2]
[321948572,1712647846821,-500.0,0.00020821,2]
[321948574,1712647846832,-519.24499784,0.00020821,2]
[321948576,1712647846843,-502.2421322,0.00020821,2]
[321948579,1712647846854,-500.0,0.00020821,2]
[321948581,1712647846864,-2068.8,0.00020821,2]
[321948583,1712647846876,-1472.14,0.00020821,2]
[321948585,1712647846886,-1353.94,0.00020821,2]
[321948587,1712647846895,-500.0,0.00020821,2]
[321948589,1712647846905,-500.0,0.00020821,2]
[321948591,1712647846914,-1102.15,0.00020821,2]
[321948593,1712647846924,-500.0,0.00020821,2]
[321948595,1712647846938,-582.56291782,0.00020821,2]
[321948597,1712647846948,-1471.54,0.00020821,2]
[321948599,1712647846958,-500.0,0.00020821,2]
[321948601,1712647846969,-500.0,0.00020821,2]
[321948603,1712647846978,-1694.75,0.00020821,2]
[321948605,1712647846987,-500.0,0.00020821,2]
[321948607,1712647846996,-500.0,0.00020821,2]
[321948609,1712647847006,-500.0,0.00020821,2]
[321948611,1712647847015,-526.23020561,0.00020821,2]
[321948613,1712647847025,-614.72,0.00020821,2]
[321948615,1712647847034,-1412.89,0.00020821,2]
[321948617,1712647847044,-500.0,0.00020821,2]
[321948619,1712647847053,-500.0,0.00020821,2]
[321948621,1712647847062,-500.0,0.00020821,2]
[321948623,1712647847072,-500.0,0.00020821,2]
[321948625,1712647847082,-2170.22,0.00020821,2]
[321948627,1712647847091,-500.0,0.00020821,2]
[321948629,1712647847101,-1064.61,0.00020821,2]
[321948631,1712647847110,-1156.68,0.00020821,2]
[321948633,1712647847119,-500.0,0.00020821,2]
[321948635,1712647847129,-144.64037352,0.00020821,2]
[321948639,1712647847153,-412.04962648,0.00020821,2]
[321948641,1712647847162,-500.0,0.00020821,2]
[321948643,1712647847172,-500.0,0.00020821,2]
[321948645,1712647847183,-500.0,0.00020821,2]
[321948687,1712647847600,-500.0,0.00020821,2]
[321948689,1712647847610,-500.0,0.00020821,2]
[321948691,1712647847619,-1650.38,0.00020821,2]
[321948693,1712647847630,-500.0,0.00020821,2]
[321948695,1712647847639,-509.37,0.00020821,2]
[321948697,1712647847649,-500.0,0.00020821,2]
[321948699,1712647847659,-1875.07,0.00020821,2]
[321948701,1712647847668,-500.0,0.00020821,2]
[321948703,1712647847678,-500.0,0.00020821,2]
[321948705,1712647847692,-500.0,0.00020821,2]
[321948707,1712647847702,-500.0,0.00020821,2]
[321948710,1712647847712,-1637.75,0.00020821,2]
[321948711,1712647847724,-500.0,0.00020821,2]
[321948713,1712647847734,-500.0,0.00020821,2]
[321948716,1712647847745,-500.0,0.00020821,2]
[321948718,1712647847755,-519.60188374,0.00020821,2]
[321948720,1712647847765,-500.0,0.00020821,2]
[321948722,1712647847774,-500.0,0.00020821,2]
[321948724,1712647847784,-509.16,0.00020821,2]
[321948726,1712647847795,-500.0,0.00020821,2]
[321948728,1712647847806,-500.0,0.00020821,2]
[321948730,1712647847816,-514.0519493,0.00020821,2]
[321948732,1712647847827,-1600.04,0.00020821,2]
[321948734,1712647847837,-521.14578934,0.00020821,2]
[321948736,1712647847847,-731.74,0.00020821,2]
[321948738,1712647847856,-535.88,0.00020821,2]
[321948740,1712647847867,-500.0,0.00020821,2]
[321948742,1712647847877,-500.0,0.00020821,2]
[321948744,1712647847887,-500.0,0.00020821,2]
[321948746,1712647847897,-593.54,0.00020821,2]
[321948748,1712647847907,-1019.62408941,0.00020821,2]
[321948758,1712647847989,-1517.30591059,0.00020821,2]
[321948760,1712647847999,-500.0,0.00020821,2]
[321948762,1712647848007,-500.0,0.00020821,2]
[321948764,1712647848017,-500.0,0.00020821,2]
[321948766,1712647848026,-500.0,0.00020821,2]
[321948768,1712647848035,-500.0,0.00020821,2]
[321948770,1712647848045,-500.0,0.00020821,2]
[321948772,1712647848054,-500.0,0.00020821,2]
[321948774,1712647848064,-500.0,0.00020821,2]
[321948776,1712647848074,-4477.85,0.00020821,2]
[321948778,1712647848084,-2192.56,0.00020821,2]
[321948780,1712647848094,-500.0,0.00020821,2]
[321948782,1712647848103,-1851.82,0.00020821,2]
[321948784,1712647848113,-500.0,0.00020821,2]
[321948786,1712647848123,-500.0,0.00020821,2]
[321948787,1712647848133,-500.0,0.00020821,2]
[321948788,1712647848142,-1796.1,0.00020821,2]
[321948789,1712647848156,-500.0,0.00020821,2]
[321948790,1712647848166,-500.0,0.00020821,2]
[321948791,1712647848176,-676.63,0.00020821,2]
[321948792,1712647848188,-1171.67,0.00020821,2]
[321948793,1712647848199,-625.27110137,0.00020821,2]
[321948794,1712647848209,-1185.64,0.00020821,2]
[321948796,1712647848220,-561.5,0.00020821,2]
[321948798,1712647848231,-500.0,0.00020821,2]
[321948800,1712647848242,-821.92,0.00020821,2]
[321948802,1712647848251,-500.0,0.00020821,2]
[321948803,1712647848261,-500.0,0.00020821,2]
[321948804,1712647848270,-500.0,0.00020821,2]
[321948805,1712647848280,-500.0,0.00020821,2]
[321948806,1712647848291,-500.0,0.00020821,2]
[321948807,1712647848300,-500.0,0.00020821,2]
[321948808,1712647848310,-537.05,0.00020821,2]
[321948809,1712647848320,-500.0,0.00020821,2]
[321948810,1712647848329,-1667.32,0.00020821,2]
[321948811,1712647848339,-1603.54,0.00020821,2]
[321948812,1712647848350,-500.0,0.00020821,2]
[321948813,1712647848360,-500.0,0.00020821,2]
[321948814,1712647848370,-500.0,0.00020821,2]
[321948815,1712647848380,-500.0,0.00020821,2]
[321948816,1712647848390,-500.0,0.00020821,2]
[321948817,1712647848400,-500.0,0.00020821,2]
[321948819,1712647848410,-500.0,0.00020821,2]
[321948821,1712647848419,-792.44,0.00020821,2]
[321948823,1712647848429,-500.0,0.00020821,2]
[321948825,1712647848439,-677.84,0.00020821,2]
[321948827,1712647848448,-1166.89,0.00020821,2]
[321948829,1712647848457,-500.0,0.00020821,2]
[321948831,1712647848467,-355.58297235,0.00020821,2]
[321948833,1712647848475,-518.61239936,0.00020821,2]
[321948835,1712647848485,-503.5663984,0.00020821,2]
[321948837,1712647848495,-1315.26,0.00020821,2]
[321948839,1712647848506,-500.0,0.00020821,2]
[321948841,1712647848516,-886.56,0.00020821,2]
[321948843,1712647848526,-500.0,0.00020821,2]
[321948845,1712647848535,-511.38080368,0.00020821,2]
[321948847,1712647848546,-2550.7,0.00020821,2]
[321948850,1712647848557,-500.0,0.00020821,2]
[321948852,1712647848566,-1109.99,0.00020821,2]
[321948854,1712647848576,-1055.08,0.00020821,2]
[321948856,1712647848585,-500.0,0.00020821,2]
[321948858,1712647848594,-500.0,0.00020821,2]
[321948860,1712647848603,-722.2,0.00020821,2]
[321948862,1712647848612,-500.0,0.00020821,2]
[321948864,1712647848622,-500.0,0.00020821,2]
[321948866,1712647848631,-500.0,0.00020821,2]
[321948868,1712647848640,-500.0,0.00020821,2]
[321948870,1712647848649,-500.0,0.00020821,2]
[321948871,1712647848659,-545.34,0.00020821,2]
[321948874,1712647848669,-532.36732324,0.00020821,2]
[321948876,1712647848679,-644.79,0.00020821,2]
[321948878,1712647848692,-1234.92,0.00020821,2]
[321948880,1712647848702,-886.73,0.00020821,2]
[321948881,1712647848712,-500.0,0.00020821,2]
[321948884,1712647848722,-500.0,0.00020821,2]
[321948886,1712647848732,-500.0,0.00020821,2]
[321948888,1712647848742,-1251.13,0.00020821,2]
[321948889,1712647848752,-505.60293522,0.00020821,2]
[321948892,1712647848762,-500.0,0.00020821,2]
[321948893,1712647848773,-500.0,0.00020821,2]
[321948896,1712647848783,-1307.0,0.00020821,2]
[321948898,1712647848792,-349.55995412,0.00020821,2]
[321948900,1712647848802,-500.0,0.00020821,2]
[321948902,1712647848812,-500.0,0.00020821,2]
[321948904,1712647848821,-608.83,0.00020821,2]
[321948906,1712647848831,-500.0,0.00020821,2]
[321948908,1712647848841,-500.0,0.00020821,2]
[321948910,1712647848851,-506.47547844,0.00020821,2]
[321948912,1712647848861,-2036.31,0.00020821,2]
[321948914,1712647848872,-500.0,0.00020821,2]
[321948916,1712647848882,-500.0,0.00020821,2]
[321948918,1712647848891,-500.0,0.00020821,2]
[321948920,1712647848901,-1348.76,0.00020821,2]
[321948922,1712647848911,-500.0,0.00020821,2]
[321948924,1712647848920,-540.44,0.00020821,2]
[321948926,1712647848929,-500.0,0.00020821,2]
[321948928,1712647848952,-290.03849107,0.00020821,2]
[321948929,1712647848962,-500.0,0.00020821,2]
[321948930,1712647848971,-500.0,0.00020821,2]
[321948931,1712647848982,-500.0,0.00020821,2]
[321948932,1712647848991,-500.0,0.00020821,2]
[321948933,1712647849000,-548.06,0.00020821,2]
[321948934,1712647849010,-1742.91,0.00020821,2]
[321948935,1712647849019,-500.0,0.00020821,2]
[321948936,1712647849028,-500.0,0.00020821,2]
[321948937,1712647849038,-1576.34,0.00020821,2]
[321948938,1712647849047,-500.0,0.00020821,2]
[321948939,1712647849057,-502.61865416,0.00020821,2]
[321948940,1712647849066,-197.05313291,0.00020821,2]
[321948941,1712647849075,-500.0,0.00020821,2]
[321948942,1712647849085,-519.46,0.00020821,2]
[321948943,1712647849094,-2767.61,0.00020821,2]
[321948944,1712647849104,-437.93299228,0.00020821,2]
[321948945,1712647849113,-722.21,0.00020821,2]
[321948946,1712647849123,-2862.65,0.00020821,2]
[321948947,1712647849134,-2757.08,0.00020821,2]
[321948948,1712647849146,-3925.35,0.00020821,2]
[321948949,1712647849161,-500.0,0.00020821,2]
[321948950,1712647849171,-500.0,0.00020821,2]
[321948951,1712647849182,-518.4,0.00020821,2]
[321948952,1712647849192,-500.0,0.00020821,2]
[321948953,1712647849202,-716.7,0.00020821,2]
[321948954,1712647849211,-500.0,0.00020821,2]
[321948955,1712647849221,-1486.09,0.00020821,2]
[321948956,1712647849231,-527.78,0.00020821,2]
[321948957,1712647849241,-2778.05,0.00020821,2]
[321948958,1712647849251,-500.0,0.00020821,2]
[321948959,1712647849260,-500.0,0.00020821,2]
[321948960,1712647849271,-500.0,0.00020821,2]
[321948961,1712647849280,-1195.52,0.00020821,2]
[321948962,1712647849290,-3989.96,0.00020821,2]
[321948963,1712647849299,-508.26974797,0.00020821,2]
[321948964,1712647849308,-1298.58,0.00020821,2]
[321948965,1712647849317,-500.0,0.00020821,2]
[321948966,1712647849327,-1894.96,0.00020821,2]
[321948967,1712647849336,-1377.48,0.00020821,2]
[321948968,1712647849345,-884.64,0.00020821,2]
[321948969,1712647849356,-2888.3,0.00020821,2]
[321948970,1712647849365,-1915.85,0.00020821,2]
[321948971,1712647849375,-500.0,0.00020821,2]
[321948972,1712647849384,-500.0,0.00020821,2]
[321948973,1712647849393,-500.0,0.00020821,2]
[321948974,1712647849402,-1600.76,0.00020821,2]
[321948975,1712647849414,-500.0,0.00020821,2]
[321948976,1712647849423,-500.0,0.00020821,2]
[321948977,1712647849434,-1394.59,0.00020821,2]
[321948978,1712647849443,-167.54133538,0.00020821,2]
[321948979,1712647849453,-502.87950193,0.00020821,2]
[321948980,1712647849462,-500.0,0.00020821,2]
[321948981,1712647849472,-500.0,0.00020821,2]
[321948982,1712647849481,-583.52715343,0.00020821,2]
[321948983,1712647849490,-500.0,0.00020821,2]
[321948984,1712647849500,-1688.78,0.00020821,2]
[321948985,1712647849509,-500.0,0.00020821,2]
[321948986,1712647849518,-500.0,0.00020821,2]
[321948987,1712647849528,-3192.87,0.00020821,2]
[321948988,1712647849537,-3469.23,0.00020821,2]
[321948990,1712647849546,-500.0,0.00020821,2]
[321948992,1712647849555,-1009.95,0.00020821,2]
[321948994,1712647849565,-751.42,0.00020821,2]
[321948996,1712647849574,-553.02650309,0.00020821,2]
[321948998,1712647849583,-510.17302701,0.00020821,2]
[321949000,1712647849592,-500.0,0.00020821,2]
[321949002,1712647849602,-9085.79,0.00020821,2]
[321949004,1712647849611,-500.0,0.00020821,2]
[321949006,1712647849620,-500.0,0.00020821,2]
[321949008,1712647849629,-954.02,0.00020821,2]
[321949010,1712647849638,-500.0,0.00020821,2]
[321949012,1712647849648,-500.0,0.00020821,2]
[321949014,1712647849657,-500.0,0.00020821,2]
[321949016,1712647849666,-876.05,0.00020821,2]
[321949018,1712647849675,-500.0,0.00020821,2]
[321949020,1712647849686,-500.0,0.00020821,2]
[321949022,1712647849695,-500.0,0.00020821,2]
[321949024,1712647849705,-1263.07,0.00020821,2]
[321949026,1712647849714,-500.0,0.00020821,2]
[321949028,1712647849724,-888.52,0.00020821,2]
[321949031,1712647849734,-500.0,0.00020821,2]
[321949033,1712647849746,-500.0,0.00020821,2]
[321949034,1712647849756,-3290.05,0.00020821,2]
[321949036,1712647849766,-1637.23,0.00020821,2]
[321949039,1712647849776,-508.95,0.00020821,2]
[321949041,1712647849787,-506.69496969,0.00020821,2]
[321949042,1712647849797,-1754.98,0.00020821,2]
[321949043,1712647849806,-2423.11,0.00020821,2]
[321949044,1712647849817,-20482.31,0.00020821,2]
[321949045,1712647849827,-500.0,0.00020821,2]
[321949046,1712647849837,-20495.45,0.00020821,2]
[321949047,1712647849848,-2250.97,0.00020821,2]
[321949048,1712647849859,-500.0,0.00020821,2]
[321949049,1712647849868,-500.0,0.00020821,2]
[321949050,1712647849877,-3317.25,0.00020821,2]
[321949052,1712647849886,-574.98,0.00020821,2]
[321949054,1712647849895,-500.0,0.00020821,2]
[321949056,1712647849905,-13069.4,0.00020821,2]
[321949058,1712647849915,-500.0,0.00020821,2]
[321949060,1712647849925,-2661.0,0.00020821,2]
[321949062,1712647849937,-500.0,0.00020821,2]
[321949064,1712647849948,-1586.21,0.00020821,2]
[321949066,1712647849958,-3860.85,0.00020821,2]
[321949068,1712647849968,-500.0,0.00020821,2]
[321949070,1712647849979,-500.0,0.00020821,2]
[321949072,1712647849988,-500.0,0.00020821,2]
[321949074,1712647849999,-58503.08,0.00020821,2]
[321949076,1712647850008,-500.0,0.00020821,2]
[321949078,1712647850018,-1707.34,0.00020821,2]
[321949080,1712647850028,-159.97437599,0.00020821,2]
[321949081,1712647850038,-3593.0,0.00020821,2]
[321949084,1712647850047,-500.0,0.00020821,2]
[321949086,1712647850056,-2225.19,0.00020821,2]
[321949088,1712647850066,-500.0,0.00020821,2]
[321949090,1712647850076,-6382.93,0.00020821,2]
[321949100,1712647850169,-619.23366187,0.00020821,2]
[321949102,1712647850178,-500.0,0.00020821,2]
[321949104,1712647850190,-3591.23,0.00020821,2]
[321949106,1712647850199,-500.0,0.00020821,2]
[321949108,1712647850208,-1088.43,0.00020821,2]
[321949110,1712647850218,-500.0,0.00020821,2]
[321949112,1712647850228,-11930.26,0.00020821,2]
[321949114,1712647850238,-206.83182449,0.00020821,2]
[321949116,1712647850248,-500.0,0.00020821,2]
[321949118,1712647850257,-500.0,0.00020821,2]
[321949120,1712647850266,-1205.49,0.00020821,2]
[321949122,1712647850277,-504.90932631,0.00020821,2]
[321949124,1712647850287,-7919.53,0.00020821,2]
[321949126,1712647850297,-500.0,0.00020821,2]
[321949129,1712647850306,-1935.13,0.00020821,2]
[321949131,1712647850316,-203.46935615,0.00020821,2]
[321949133,1712647850325,-500.0,0.00020821,2]
[321949135,1712647850335,-500.0,0.00020821,2]
[321949137,1712647850344,-500.0,0.00020821,2]
[321949138,1712647850355,-717.03,0.00020821,2]
[321949140,1712647850365,-8767.28,0.00020821,2]
[321949142,1712647850375,-500.0,0.00020821,2]
[321949144,1712647850384,-504.17025415,0.00020821,2]
[321949146,1712647850393,-535.30571386,0.00020821,2]
[321949149,1712647850403,-500.0,0.00020821,2]
[321949150,1712647850413,-500.0,0.00020821,2]
[321949153,1712647850423,-521.42,0.00020821,2]
[321949154,1712647850432,-500.0,0.00020821,2]
[321949157,1712647850442,-500.0,0.00020821,2]
[321949159,1712647850452,-500.0,0.00020821,2]
[321949161,1712647850461,-513.23690277,0.00020821,2]
[321949163,1712647850471,-500.0,0.00020821,2]
[321949165,1712647850481,-500.0,0.00020821,2]
[321949166,1712647850491,-500.0,0.00020821,2]
[321949168,1712647850500,-977.71,0.00020821,2]
[321949170,1712647850510,-500.0,0.00020821,2]
[321949172,1712647850519,-500.0,0.00020821,2]
[321949175,1712647850530,-640.94674197,0.00020821,2]
[321949177,1712647850540,-500.0,0.00020821,2]
[321949178,1712647850550,-5082.85,0.00020821,2]
[321949181,1712647850560,-500.0,0.00020821,2]
[321949183,1712647850570,-1374.79,0.00020821,2]